fUSD/lending_fUSD_20260322
["ID","MTS","AMOUNT","RATE_DAILY","PERIOD"]
[408728073,1774174258253,-151.0,0.00043836,120]
[408728074,1774174258263,-157.791517,0.00043836,120]
[408728075,1774174258273,-151.0,0.00043836,120]
[408728076,1774174258283,-157.791517,0.00043836,120]
[408728077,1774174258292,-351.970419,0.00043836,120]
[408728078,1774174258302,-351.970419,0.00043836,120]
[408728079,1774174258312,-151.0,0.00043836,120]
[408728080,1774174258321,-151.0,0.00043836,120]
[408728081,1774174258330,-351.970419,0.00043836,120]
[408728082,1774174258339,-351.970419,0.00043836,120]
[408728083,1774174258349,-151.0,0.00043836,120]
[408728084,1774174258358,-245.854581,0.00043836,120]
[408728085,1774174258367,-151.0,0.00043836,120]
[408728086,1774174258376,-351.970419,0.00043836,120]
[408728087,1774174258386,-151.0,0.00043836,120]
[408728088,1774174258396,-351.970419,0.00043836,120]
[408728089,1774174258405,-166.100486,0.00043836,120]
[408728090,1774174258414,-151.0,0.00043836,120]
[408728091,1774174258423,-351.970419,0.00043836,120]
[408728092,1774174258433,-151.0,0.00043836,120]
[408728093,1774174258442,-351.970419,0.00043836,120]
[408728094,1774174258451,-151.0,0.00043836,120]
[408728095,1774174258460,-151.0,0.00043836,120]
[408728096,1774174258470,-151.0,0.00043836,120]
[408728097,1774174258479,-151.0,0.00043836,120]
[408728098,1774174258488,-151.0,0.00043836,120]
[408728099,1774174258497,-151.0,0.00043836,120]
[408728100,1774174258506,-202.492859,0.00043836,120]
[408728101,1774174258515,-202.492859,0.00043836,120]
[408728102,1774174258524,-151.0,0.00043836,120]
[408728103,1774174258533,-151.0,0.00043836,120]
[408728104,1774174258542,-202.492859,0.00043836,120]
[408728105,1774174258552,-151.0,0.00043836,120]
[408728106,1774174258561,-202.492859,0.00043836,120]
[408728107,1774174258570,-202.492859,0.00043836,120]
[408728108,1774174258580,-202.492859,0.00043836,120]
[408728109,1774174258589,-151.0,0.00043836,120]
[408728110,1774174258598,-151.0,0.00043836,120]
[408728111,1774174258607,-202.492859,0.00043836,120]
[408728112,1774174258616,-202.492859,0.00043836,120]
[408728113,1774174258626,-151.0,0.00043836,120]
[408728114,1774174258635,-151.0,0.00043836,120]
[408728115,1774174258644,-151.0,0.00043836,120]
[408728116,1774174258653,-151.0,0.00043836,120]
[408728117,1774174258662,-151.0,0.00043836,120]
[408728118,1774174258671,-151.0,0.00043836,120]
[408728119,1774174258681,-151.0,0.00043836,120]
[408728120,1774174258690,-151.0,0.00043836,120]
[408728121,1774174258699,-151.0,0.00043836,120]
[408728122,1774174258708,-151.0,0.00043836,120]
[408728123,1774174258717,-151.0,0.00043836,120]
[408728124,1774174258726,-151.0,0.00043836,120]
[408728125,1774174258736,-151.0,0.00043836,120]
[408728126,1774174258745,-151.0,0.00043836,120]
[408728127,1774174258754,-264.731884,0.00043836,120]
[408728128,1774174258763,-151.0,0.00043836,120]
[408728129,1774174258772,-264.731884,0.00043836,120]
[408728130,1774174258781,-151.0,0.00043836,120]
[408728131,1774174258791,-380.35659,0.00043836,120]
[408728132,1774174258800,-151.0,0.00043836,120]
[408728133,1774174258809,-151.0,0.00043836,120]
[408728134,1774174258818,-264.731884,0.00043836,120]
[408728135,1774174258828,-151.0,0.00043836,120]
[408728136,1774174258837,-380.35659,0.00043836,120]
[408728137,1774174258845,-264.731884,0.00043836,120]
[408728138,1774174258855,-380.35659,0.00043836,120]
[408728139,1774174258864,-151.0,0.00043836,120]
[408728140,1774174258876,-380.35659,0.00043836,120]
[408728141,1774174258885,-185.234492,0.00043836,120]
[408728142,1774174258895,-151.0,0.00043836,120]
[408728143,1774174258904,-185.234492,0.00043836,120]
[408728144,1774174258913,-151.0,0.00043836,120]
[408728145,1774174258922,-283.681095,0.00043836,120]
[408728146,1774174258931,-257.56763,0.00043836,120]
[408728147,1774174258940,-185.234492,0.00043836,120]
[408728148,1774174258950,-209.14938,0.00043836,120]
[408728149,1774174258959,-345.101889,0.00043836,120]
[408728150,1774174258968,-257.56763,0.00043836,120]
[408728151,1774174258978,-283.681095,0.00043836,120]
[408728152,1774174258987,-185.234492,0.00043836,120]
[408728153,1774174258997,-151.0,0.00043836,120]
[408728154,1774174259007,-257.56763,0.00043836,120]
[408728155,1774174259016,-345.101889,0.00043836,120]
[408728156,1774174259025,-283.681095,0.00043836,120]
[408728157,1774174259034,-151.0,0.00043836,120]
[408728158,1774174259043,-345.101889,0.00043836,120]
[408728159,1774174259052,-283.681095,0.00043836,120]
[408728160,1774174259062,-257.56763,0.00043836,120]
[408728161,1774174259071,-151.0,0.00043836,120]
[408728162,1774174259081,-345.101889,0.00043836,120]
[408728163,1774174259091,-151.0,0.00043836,120]
[408728164,1774174259102,-151.0,0.00043836,120]
[408728165,1774174259112,-245.611452,0.00043836,120]
[408728166,1774174259121,-151.0,0.00043836,120]
[408728167,1774174259131,-245.611452,0.00043836,120]
[408728168,1774174259144,-151.0,0.00043836,120]
[408728169,1774174259154,-151.0,0.00043836,120]
[408728170,1774174259163,-245.611452,0.00043836,120]
[408728171,1774174259282,-151.0,0.00043836,120]
[408728172,1774174259291,-151.0,0.00043836,120]
[408728173,1774174259307,-245.611452,0.00043836,120]
[408728174,1774174259316,-151.0,0.00043836,120]
[408728175,1774174259326,-151.0,0.00043836,120]
[408728176,1774174259336,-151.0,0.00043836,120]
[408728177,1774174259346,-151.0,0.00043836,120]
[408728178,1774174259355,-151.0,0.00043836,120]
[408728179,1774174259365,-151.0,0.00043836,120]
[408728180,1774174259374,-151.0,0.00043836,120]
[408728181,1774174259383,-151.0,0.00043836,120]
[408728182,1774174259393,-155.052274,0.00043836,120]
[408728183,1774174259403,-151.0,0.00043836,120]
[408728184,1774174259412,-151.0,0.00043836,120]
[408728185,1774174259422,-151.0,0.00043836,120]
[408728186,1774174259434,-151.0,0.00043836,120]
[408728187,1774174259443,-151.0,0.00043836,120]
[408728188,1774174259452,-151.0,0.00043836,120]
[408728189,1774174259465,-151.0,0.00043836,120]
[408728190,1774174259475,-151.0,0.00043836,120]
[408728191,1774174259486,-371.245471,0.00043836,120]
[408728192,1774174259496,-151.0,0.00043836,120]
[408728193,1774174259506,-151.0,0.00043836,120]
[408728194,1774174259515,-151.0,0.00043836,120]
[408728195,1774174259524,-371.245471,0.00043836,120]
[408728196,1774174259534,-151.0,0.00043836,120]
[408728197,1774174259543,-151.0,0.00043836,120]
[408728198,1774174259552,-371.245471,0.00043836,120]
[408728199,1774174259562,-151.0,0.00043836,120]
[408728200,1774174259571,-151.0,0.00043836,120]
[408728201,1774174259580,-151.0,0.00043836,120]
[408728202,1774174259589,-371.245471,0.00043836,120]
[408728203,1774174259598,-824.99383,0.00043836,120]
[408728204,1774174259608,-1000.0,0.00043836,29]
[408728205,1774174259617,-414.47388067,0.00043836,10]
[408728206,1774174259627,-303.559452,0.00043836,120]
[408728207,1774174259636,-303.559452,0.00043836,120]
[408728208,1774174259645,-303.559452,0.00043836,120]
[408728209,1774174259654,-303.559452,0.00043836,120]
[408728210,1774174259663,-151.0,0.00043836,120]
[408728211,1774174259672,-151.0,0.00043836,120]
[408728212,1774174259682,-521.837506,0.00043836,7]
[408728213,1774174259691,-151.0,0.00043836,120]
[408728214,1774174259700,-481.529975,0.00043836,60]
[408728215,1774174259709,-521.837506,0.00043836,7]
[408728216,1774174259717,-151.0,0.00043836,120]
[408728217,1774174259726,-481.529975,0.00043836,60]
[408728218,1774174259734,-521.837506,0.00043836,7]
[408728219,1774174259742,-151.0,0.00043836,120]
[408728220,1774174259750,-310.393836,0.00043836,120]
[408728221,1774174259758,-481.529975,0.00043836,60]
[408728222,1774174259767,-521.837506,0.00043836,7]
[408728223,1774174259776,-272.108737,0.00043836,120]
[408728224,1774174259785,-310.393836,0.00043836,120]
[408728225,1774174259795,-481.529975,0.00043836,60]
[408728226,1774174259804,-214.998497,0.00043836,120]
[408728227,1774174259814,-310.393836,0.00043836,120]
[408728228,1774174259822,-214.998497,0.00043836,120]
[408728229,1774174259831,-151.0,0.00043836,120]
[408728230,1774174259840,-151.0,0.00043836,120]
[408728231,1774174259849,-310.393836,0.00043836,120]
[408728232,1774174259858,-276.235304,0.00043836,120]
[408728233,1774174259867,-214.998497,0.00043836,120]
[408728234,1774174259877,-214.998497,0.00043836,120]
[408728235,1774174259886,-439.872975,0.00043836,120]
[408728236,1774174259894,-439.872975,0.00043836,120]
[408728237,1774174259902,-633.235757,0.00043836,120]
[408728238,1774174259908,-439.872975,0.00043836,120]
[408728239,1774174259916,-439.872975,0.00043836,120]
[408728240,1774174259926,-633.235757,0.00043836,120]
[408728241,1774174259935,-633.235757,0.00043836,120]
[408728242,1774174259944,-944.871301,0.00043836,120]
[408728243,1774174259953,-633.235757,0.00043836,120]
[408728244,1774174259962,-944.871301,0.00043836,120]
[408728245,1774174259971,-944.871301,0.00043836,120]
[408728246,1774174259981,-536.41918,0.00043836,120]
[408728247,1774174259990,-944.871301,0.00043836,120]
[408728248,1774174259998,-536.41918,0.00043836,120]
[408728249,1774174260010,-536.41918,0.00043836,120]
[408728250,1774174260019,-536.41918,0.00043836,120]
[408728251,1774174260029,-151.0,0.00043836,120]
[408728252,1774174260038,-290.314338,0.00043836,120]
[408728253,1774174260047,-734.086303,0.00043836,120]
[408728254,1774174260057,-156.762456,0.00043836,120]
[408728255,1774174260067,-734.086303,0.00043836,120]
[408728256,1774174260076,-734.086303,0.00043836,120]
[408728257,1774174260085,-734.086303,0.00043836,120]
[408728258,1774174260095,-151.0,0.00043836,120]
[408728259,1774174260104,-501.281462,0.00043836,120]
[408728260,1774174260113,-501.281462,0.00043836,120]
[408728261,1774174260122,-501.281462,0.00043836,120]
[408728262,1774174260132,-501.281462,0.00043836,120]
[408728263,1774174260143,-979.16666667,0.0004384,120]
[408728264,1774174260152,-1579.48340954,0.00043887,30]
[408728265,1774174260162,-624.0,0.00043891,2]
[408728266,1774174260171,-624.0,0.00043928,30]
[408728267,1774174260181,-6168.56518165,0.00043947,2]
[408728268,1774174260192,-562.1,0.0004398,30]
[408728269,1774174260201,-1041.67,0.00043999,2]
[408728270,1774174260211,-416.73502406,0.00043999,120]
[408728271,1774174260221,-5000.0,0.00044,120]
[408728272,1774174260230,-70943.98686584,0.00044,2]
[408728273,1774174260239,-420.11213587,0.00044,120]
[408728274,1774174260248,-1591.08360616,0.00044,120]
[408728275,1774174260257,-30000.0,0.00044,45]
[408728276,1774174260267,-30000.0,0.00044,45]
[408728277,1774174260278,-30000.0,0.00044,60]
[408728278,1774174260287,-163.36,0.00044,120]
[408728279,1774174260296,-150.0,0.00044,57]
[408728280,1774174260305,-386.625625,0.00044,120]
[408728281,1774174260314,-386.625625,0.00044,120]
[408728282,1774174260324,-386.625625,0.00044,120]
[408728283,1774174260333,-386.625625,0.00044,120]
[408728284,1774174260343,-151.0,0.00044,120]
[408728285,1774174260352,-151.0,0.00044,120]
[408728286,1774174260361,-151.0,0.00044,120]
[408728287,1774174260370,-151.0,0.00044,120]
[408728288,1774174260382,-198.526415,0.00044,120]
[408728289,1774174260392,-151.0,0.00044,120]
[408728290,1774174260401,-151.0,0.00044,120]
[408728291,1774174260411,-151.0,0.00044,120]
[408728292,1774174260420,-151.0,0.00044,120]
[408728293,1774174260429,-151.0,0.00044,120]
[408728294,1774174260438,-241.152328,0.00044,120]
[408728295,1774174260447,-151.0,0.00044,120]
[408728296,1774174260457,-151.0,0.00044,120]
[408728297,1774174260466,-151.0,0.00044,120]
[408728298,1774174260475,-342.347304,0.00044,120]
[408728299,1774174260485,-342.347304,0.00044,120]
[408728300,1774174260494,-155.605768,0.00044,120]
[408728301,1774174260503,-342.347304,0.00044,120]
[408728302,1774174260512,-342.347304,0.00044,120]
[408728303,1774174260522,-155.605768,0.00044,120]
[408728304,1774174260531,-155.605768,0.00044,120]
[408728305,1774174260541,-606.23374,0.00044,120]
[408728306,1774174260550,-155.605768,0.00044,120]
[408728307,1774174260559,-606.23374,0.00044,120]
[408728308,1774174260568,-606.23374,0.00044,120]
[408728309,1774174260577,-151.0,0.00044,120]
[408728310,1774174260586,-606.23374,0.00044,120]
[408728311,1774174260595,-151.0,0.00044,120]
[408728312,1774174260604,-163.75962,0.00044,120]
[408728313,1774174260613,-163.75962,0.00044,120]
[408728314,1774174260623,-163.75962,0.00044,120]
[408728315,1774174260632,-163.75962,0.00044,120]
[408728316,1774174260641,-935.269381,0.00044,120]
[408728317,1774174260650,-935.269381,0.00044,120]
[408728318,1774174260659,-935.269381,0.00044,120]
[408728319,1774174260668,-935.269381,0.00044,120]
[408728320,1774174260678,-165.033818,0.00044,120]
[408728321,1774174260687,-442.590296,0.00044,120]
[408728322,1774174260696,-442.590296,0.00044,120]
[408728323,1774174260705,-442.590296,0.00044,120]
[408728324,1774174260714,-312.197188,0.00044,120]
[408728325,1774174260722,-442.590296,0.00044,120]
[408728326,1774174260732,-312.197188,0.00044,120]
[408728327,1774174260741,-312.197188,0.00044,120]
[408728328,1774174260750,-151.0,0.00044,120]
[408728329,1774174260759,-312.197188,0.00044,120]
[408728330,1774174260769,-292.049192,0.00044,120]
[408728331,1774174260777,-164.703206,0.00044,120]
[408728332,1774174260786,-186.66056,0.00044,120]
[408728333,1774174260795,-186.66056,0.00044,120]
[408728334,1774174260804,-151.0,0.00044,120]
[408728335,1774174260814,-186.66056,0.00044,120]
[408728336,1774174260823,-151.0,0.00044,120]
[408728337,1774174260832,-186.66056,0.00044,120]
[408728338,1774174260842,-151.0,0.00044,120]
[408728339,1774174260851,-151.0,0.00044,120]
[408728340,1774174260861,-151.0,0.00044,120]
[408728341,1774174260870,-151.0,0.00044,120]
[408728342,1774174260879,-151.0,0.00044,120]
[408728343,1774174260888,-151.0,0.00044,120]
[408728344,1774174260897,-151.0,0.00044,120]
[408728345,1774174260905,-323.554684,0.00044,120]
[408728346,1774174260915,-151.0,0.00044,120]
[408728347,1774174261030,-151.0,0.00044,120]
[408728348,1774174261039,-323.554684,0.00044,120]
[408728349,1774174261049,-151.0,0.00044,120]
[408728350,1774174261058,-272.595887,0.00044,120]
[408728351,1774174261067,-323.554684,0.00044,120]
[408728352,1774174261077,-323.554684,0.00044,120]
[408728353,1774174261086,-622.034379,0.00044,120]
[408728354,1774174261095,-622.034379,0.00044,120]
[408728355,1774174261104,-622.034379,0.00044,120]
[408728356,1774174261113,-622.034379,0.00044,120]
[408728357,1774174261123,-247.932281,0.00044,120]
[408728358,1774174261132,-247.932281,0.00044,120]
[408728359,1774174261147,-247.932281,0.00044,120]
[408728360,1774174261156,-247.932281,0.00044,120]
[408728361,1774174261166,-151.0,0.00044,120]
[408728362,1774174261175,-241.036701,0.00044,120]
[408728363,1774174261186,-556.253932,0.00044,120]
[408728364,1774174261195,-556.253932,0.00044,120]
[408728365,1774174261204,-556.253932,0.00044,120]
[408728366,1774174261215,-556.253932,0.00044,120]
[408728367,1774174261224,-151.0,0.00044,120]
[408728368,1774174261233,-151.0,0.00044,120]
[408728369,1774174261243,-151.0,0.00044,120]
[408728370,1774174261252,-151.0,0.00044,120]
[408728371,1774174261261,-151.0,0.00044,120]
[408728372,1774174261270,-534.273624,0.00044,120]
[408728373,1774174261279,-534.273624,0.00044,120]
[408728374,1774174261288,-534.273624,0.00044,120]
[408728375,1774174261298,-534.273624,0.00044,120]
[408728376,1774174261308,-151.0,0.00044,120]
[408728377,1774174261317,-409.86,0.00044021,120]
[408728378,1774174261327,-185.34314008,0.0004408,2]
[408728379,1774174261336,-150.0,0.00044088,7]
[408728380,1774174261345,-1990.0,0.00044109,120]
[408728381,1774174261355,-1093.0,0.00044138,120]
[408728382,1774174261364,-624.0,0.00044151,120]
[408728383,1774174261373,-1105.0,0.00044256,120]
[408728384,1774174261383,-774.0,0.0004426,120]
[408728385,1774174261393,-542.0,0.00044268,120]
[408728386,1774174261403,-379.0,0.00044268,120]
[408728387,1774174261412,-409.86,0.00044295,120]
[408728388,1774174261422,-1041.67,0.00044299,2]
[408728389,1774174261432,-69877.18,0.000443,7]
[408728390,1774174261440,-1990.0,0.00044383,120]
[408728391,1774174261450,-500.0,0.00044392,120]
[408728392,1774174261459,-200.0,0.00044392,120]
[408728393,1774174261468,-156.80204225,0.00044433,2]
[408728394,1774174261478,-1371.43742876,0.0004444,120]
[408728395,1774174261487,-154.38343801,0.00044497,120]
[408728396,1774174261496,-151.0,0.00044521,120]
[408728397,1774174261506,-409.86,0.00044569,120]
[408728398,1774174261516,-623.0,0.00044578,2]
[408728399,1774174261526,-1990.0,0.00044657,120]
[408728400,1774174261534,-1765.0,0.00044702,7]
[408728401,1774174261544,-156.80204225,0.00044707,2]
[408728402,1774174261553,-1600.0,0.00044736,120]
[408728403,1774174261563,-150.0,0.000448,120]
[408728404,1774174261572,-176.23695,0.000448,120]
[408728405,1774174261581,-624.0,0.00044836,7]
[408728406,1774174261591,-409.86,0.00044843,120]
[408728407,1774174261600,-1359.31922029,0.00044851,17]
[408728408,1774174261609,-559.0,0.00044852,120]
[408728409,1774174261619,-623.0,0.00044866,2]
[408728410,1774174261629,-273.73948861,0.0004489,120]
[408728411,1774174261639,-515.61896514,0.000449,30]
[408728412,1774174261648,-500.0,0.00044931,120]
[408728413,1774174261657,-500.0,0.00044931,120]
[408728414,1774174261666,-500.0,0.00044931,120]
[408728415,1774174261675,-500.0,0.00044931,120]
[408728416,1774174261684,-500.0,0.00044931,120]
[408728417,1774174261694,-500.0,0.00044931,120]
[408728418,1774174261703,-500.0,0.00044931,120]
[408728419,1774174261712,-500.0,0.00044931,120]
[408728420,1774174261722,-500.0,0.00044931,120]
[408728421,1774174261731,-500.0,0.00044931,120]
[408728422,1774174261740,-500.0,0.00044931,120]
[408728423,1774174261750,-500.0,0.00044931,120]
[408728424,1774174261759,-500.0,0.00044931,120]
[408728425,1774174261769,-500.0,0.00044931,120]
[408728426,1774174261779,-500.0,0.00044931,120]
[408728427,1774174261788,-500.0,0.00044931,120]
[408728428,1774174261798,-500.0,0.00044931,120]
[408728429,1774174261807,-1990.0,0.00044931,120]
[408728430,1774174261816,-1093.0,0.00044951,120]
[408728431,1774174261826,-623.0,0.00044963,7]
[408728432,1774174261836,-156.80204225,0.00044981,2]
[408728433,1774174261845,-151.0,0.00044997,120]
[408728434,1774174261855,-1041.67,0.00044999,2]
[408728435,1774174261868,-500.0,0.00044999,120]
[408728436,1774174261878,-954.80579739,0.00045,120]
[408728437,1774174261888,-1117.78134268,0.00045,120]
[408728438,1774174261897,-363.98,0.00045,30]
[408728439,1774174261906,-156.5438327,0.00045,120]
[408728440,1774174261916,-515.3785488,0.00045,120]
[408728441,1774174261926,-336.58130009,0.00045,120]
[408728442,1774174261935,-280.53789047,0.00045,30]
[408728443,1774174261945,-254.06913009,0.00045,120]
[408728444,1774174261954,-489.49014093,0.00045,30]
[408728445,1774174261963,-174.86944759,0.00045,30]
[408728446,1774174261973,-626.04608083,0.00045,120]
[408728447,1774174261983,-462.46747786,0.00045,30]
[408728448,1774174261992,-363.20663348,0.00045,30]
[408728449,1774174262001,-655.60857472,0.00045,2]
[408728450,1774174262010,-339.24631758,0.00045,30]
[408728451,1774174262019,-287.506153,0.00045,120]
[408728452,1774174262029,-262.16292694,0.00045,120]
[408728453,1774174262039,-591.95668452,0.00045,120]
[408728454,1774174262048,-1116.61855449,0.00045,120]
[408728455,1774174262058,-666.35696272,0.00045,30]
[408728456,1774174262067,-37397.25874668,0.00045,30]
[408728457,1774174262478,-12602.74125332,0.00045,30]
[408728458,1774174262487,-8173.54366669,0.00045,45]
[408728459,1774174262638,-3244.72416054,0.0001999,2]
[408728460,1774174262650,-17765.62524509,0.0001999,2]
[408728461,1774174262660,-234.36773883,0.00029893,2]
[408728462,1774174262669,-3760.0,0.00030269,2]
[408728463,1774174262678,-3760.0,0.00033269,2]
[408728464,1774174262687,-3760.0,0.00036269,2]
[408728465,1774174262697,-471.22180712,0.00042447,2]
[408728466,1774174262706,-300.0,0.00042447,2]
[408728467,1774174262716,-824.99383,0.00043836,120]
[408728468,1774174262725,-151.0,0.00043836,120]
[408728469,1774174262735,-151.0,0.00043836,120]
[408728470,1774174262744,-151.0,0.00043836,120]
[408728471,1774174262754,-824.99383,0.00043836,120]
[408728472,1774174262764,-193.26486284,0.000449,120]
[408728473,1774174262773,-18072.81558962,0.00045,45]
[408728474,1774174262874,-3760.0,0.00039269,2]
[408728475,1774174262884,-3753.64074369,0.00045,45]
[408728476,1774174262891,-256.38872165,0.00045,45]
[408728477,1774174262902,-2372.36451701,0.00045,45]
[408728478,1774174262912,-722.8955016,0.00045,45]
[408728479,1774174262929,-559.389488,0.00043836,120]
[408728480,1774174262938,-19289.3643933,0.00045,45]
[408728481,1774174263144,-2072.54365153,0.00016786,2]
[408728482,1774174263167,-6853.10007736,0.00016786,2]
[408728483,1774174263175,-413.0,0.00035307,30]
[408728484,1774174263186,-383.0,0.00035307,30]
[408728485,1774174263195,-322.03547,0.00038688,30]
[408728486,1774174263204,-3373.47180841,0.00042269,2]
[408728487,1774174568214,170.96,0.00011168,2]
[408728488,1774174621950,188.17,6.898e-05,2]
[408728489,1774174622143,188.17,7.261e-05,2]
[408728490,1774174622783,188.17,7.624e-05,2]
[408728491,1774174622872,188.17,7.987e-05,2]
[408728492,1774174622927,188.17,8.35e-05,2]
[408728493,1774174623044,188.17,8.713e-05,2]
[408728494,1774174623233,188.17,9.076e-05,2]
[408728495,1774174623422,188.17,9.439e-05,2]
[408728496,1774174623618,188.17,9.802e-05,2]
[408728497,1774174623796,188.17,0.00010165,2]
[408728498,1774174624012,188.17,0.00010528,2]
[408728499,1774174624198,188.17,0.00010891,2]
[408728500,1774174624383,188.17,0.00011255,2]
[408728501,1774174624605,188.17,0.00011618,2]
[408728502,1774174624762,188.17,0.00011981,2]
[408728503,1774174984548,10000.01,0.00011991,2]
[408728504,1774174984571,6351.05,0.00011991,2]
[408728505,1774174990329,1500.0,0.00012037,2]
[408728506,1774175005022,200.0,0.000116,2]
[408728507,1774175067287,-185.25,0.00012056,2]
[408728508,1774175074748,200.0,0.000101,2]
[408728509,1774175125080,1225.56,0.00011874,2]
[408728510,1774175148129,166.66,0.00011296,2]
[408728511,1774175148329,166.66,0.00011534,2]
[408728512,1774175148513,166.66,0.00011772,2]
[408728513,1774175148705,166.66,0.00012009,2]
[408728514,1774175183554,7537.31,8e-05,2]
[408728515,1774175183577,1172.32249741,8e-05,2]
[408728516,1774175217868,187.68642998,0.00012054,2]
[408728517,1774175258621,200.0,0.00011656,2]
[408728518,1774175263132,150.0,0.00016,120]
[408728519,1774175285482,778.01,0.00011645,2]
[408728520,1774175302286,150.0,0.00011648,2]
[408728522,1774175340176,7511.99107261,9.5e-05,3]
[408728523,1774175340203,10000.01,9.5e-05,3]
[408728524,1774175340228,10000.01,9.5e-05,3]
[408728525,1774175340251,10000.01,9.5e-05,3]
[408728526,1774175340275,10000.01,9.5e-05,3]
[408728527,1774175340299,10000.01,9.5e-05,3]
[408728528,1774175340333,42488.05892739,9.5e-05,3]
[408728538,1774175431651,-616.38608097,0.00012093,2]
[408728540,1774175431663,-895.86861586,0.00012093,2]
[408728541,1774175431707,-296.369996,0.00012093,2]
[408728542,1774175431761,-3378.10580517,0.00012093,2]
[408728543,1774175431771,-279.0,0.00012093,2]
[408728544,1774175431781,-775.0,0.00012154,2]
[408728545,1774175431790,-250.0,0.00012195,2]
[408728546,1774175431800,-152.93,0.00012235,2]
[408728547,1774175431810,-166.66,0.00012247,2]
[408728548,1774175431819,-250.0,0.00012254,2]
[408728549,1774175431828,-188.17,0.00012344,2]
[408728550,1774175431838,-300.0,0.00012472,2]
[408728551,1774175431848,-213.05016009,0.00012472,2]
[408728552,1774175431859,-86.94983991,0.00012472,2]
[408728553,1774175431869,-300.0,0.00012472,2]
[408728554,1774175431878,-1200.0,0.00012472,2]
[408728555,1774175431888,-300.0,0.00012472,2]
[408728556,1774175431898,-1520.88355385,0.00012473,2]
[408728557,1774175431907,-7404.48216669,0.00012473,2]
[408728558,1774175431916,-166.66,0.00012485,2]
[408728559,1774175431925,-218.39677848,0.00012499,2]
[408728560,1774175431935,-300.0,0.000125,4]
[408728561,1774175431944,-500.0,0.00012505,2]
[408728563,1774175432061,-458.0,0.00012526,2]
[408728564,1774175432099,-150.0,0.00012526,2]
[408728565,1774175432109,-500.0,0.00012527,2]
[408728566,1774175432119,-277.59973761,0.00012527,2]
[408728567,1774175432129,-500.0,0.00012527,2]
[408728568,1774175432139,-260.95516902,0.00012527,2]
[408728569,1774175432148,-500.0,0.00012527,2]
[408728570,1774175432158,-500.0,0.00012527,2]
[408728571,1774175432167,-500.0,0.00012527,2]
[408728572,1774175432176,-500.0,0.00012527,2]
[408728573,1774175432185,-500.0,0.00012527,2]
[408728574,1774175432195,-500.0,0.00012527,2]
[408728575,1774175432204,-500.0,0.00012527,2]
[408728576,1774175432213,-444.96976629,0.00012527,2]
[408728577,1774175432222,-500.0,0.00012527,2]
[408728578,1774175432231,-500.0,0.00012527,2]
[408728579,1774175432240,-500.0,0.00012527,2]
[408728580,1774175432249,-500.0,0.00012527,2]
[408728581,1774175432258,-500.0,0.00012527,2]
[408728582,1774175432267,-500.0,0.00012527,2]
[408728583,1774175432276,-365.26604837,0.00012527,2]
[408728584,1774175432286,-500.0,0.00012527,2]